[Event "Masterklassen 2025"]
[Site "Uppsala, Sweden"]
[Date "2025.07.03"]
[Round "6.12"]
[White "Tornberg, Carlos"]
[Black "Johansson, William"]
[Result "0-1"]
[TimeControl "90 min for 40 move + 30 min with an increment of 30 sec starting move 1"]
[WhiteFideId "1733478"]
[BlackFideId "1744070"]
[WhiteElo "2233"]
[BlackElo "2026"]

1. e4 {[%clk 01:27:53]} {[%emt 00:03:07]} c6 {[%clk 01:30:41]} {[%emt
00:00:20]} 2. d4 {[%clk 01:28:19]} {[%emt 00:00:03]} d5 {[%clk 01:31:06]}
{[%emt 00:00:05]} 3. Nc3 {[%clk 01:28:48]} {[%emt 00:00:02]} dxe4 {[%clk
01:31:29]} {[%emt 00:00:07]} 4. Nxe4 {[%clk 01:29:14]} {[%emt 00:00:04]} Nf6
{[%clk 01:31:52]} {[%emt 00:00:06]} 5. Nxf6+ {[%clk 01:29:41]} {[%emt
00:00:04]} exf6 {[%clk 01:32:15]} {[%emt 00:00:07]} 6. c3 {[%clk 01:30:08]}
{[%emt 00:00:03]} Bd6 {[%clk 01:32:38]} {[%emt 00:00:07]} 7. Bd3 {[%clk
01:30:34]} {[%emt 00:00:03]} O-O {[%clk 01:32:57]} {[%emt 00:00:11]} 8. Ne2
{[%clk 01:30:50]} {[%emt 00:00:14]} Re8 {[%clk 01:33:19]} {[%emt 00:00:08]} 9.
O-O {[%clk 01:31:14]} {[%emt 00:00:06]} Nd7 {[%clk 01:33:22]} {[%emt 00:00:27]}
10. Ng3 {[%clk 01:31:38]} {[%emt 00:00:07]} g6 {[%clk 01:32:42]} {[%emt
00:01:10]} 11. Bh6 {[%clk 01:32:03]} {[%emt 00:00:04]} Nf8 {[%clk 01:18:38]}
{[%emt 00:14:34]} 12. Be3 {[%clk 01:20:29]} {[%emt 00:12:04]} f5 {[%clk
01:10:32]} {[%emt 00:08:36]} 13. Qd2 {[%clk 01:15:46]} {[%emt 00:05:12]} Ne6
{[%clk 01:09:56]} {[%emt 00:01:07]} 14. Bh6 {[%clk 01:15:38]} {[%emt 00:00:38]}
Qh4 {[%clk 01:01:20]} {[%emt 00:09:07]} 15. Bc4 {[%clk 01:07:38]} {[%emt
00:08:30]} Nf4 {[%clk 00:54:24]} {[%emt 00:07:25]} 16. Bxf4 {[%clk 01:06:29]}
{[%emt 00:01:39]} Bxf4 {[%clk 00:54:34]} {[%emt 00:00:20]} 17. Qc2 {[%clk
01:04:14]} {[%emt 00:02:44]} Be6 {[%clk 00:53:09]} {[%emt 00:01:55]} 18. Qb3
{[%clk 00:59:52]} {[%emt 00:04:52]} Bxc4 {[%clk 00:53:14]} {[%emt 00:00:26]} 19.
Qxc4 {[%clk 00:58:53]} {[%emt 00:01:29]} Re7 {[%clk 00:44:57]} {[%emt
00:08:48]} 20. Qc5 {[%clk 00:53:41]} {[%emt 00:05:41]} a6 {[%clk 00:43:28]}
{[%emt 00:01:58]} 21. Rad1 {[%clk 00:46:04]} {[%emt 00:08:07]} Rd8 {[%clk
00:38:46]} {[%emt 00:05:13]} 22. Rd3 {[%clk 00:42:49]} {[%emt 00:03:45]} Bd6
{[%clk 00:38:16]} {[%emt 00:01:00]} 23. Qb6 {[%clk 00:42:19]} {[%emt 00:01:00]}
Bc7 {[%clk 00:38:35]} {[%emt 00:00:12]} 24. Qb4 {[%clk 00:37:21]} {[%emt
00:05:26]} Bd6 {[%clk 00:33:51]} {[%emt 00:05:15]} 25. Qb3 {[%clk 00:37:09]}
{[%emt 00:00:42]} Rde8 {[%clk 00:31:35]} {[%emt 00:02:47]} 26. Qd1 {[%clk
00:35:01]} {[%emt 00:02:37]} Re2 {[%clk 00:27:03]} {[%emt 00:05:02]} 27. Rd2
{[%clk 00:32:49]} {[%emt 00:02:42]} Rxd2 {[%clk 00:26:10]} {[%emt 00:01:24]} 28.
Qxd2 {[%clk 00:33:18]} f4 {[%clk 00:26:04]} {[%emt 00:00:36]} 29. Nh1 {[%clk
00:31:27]} {[%emt 00:02:21]} f3 {[%clk 00:25:54]} {[%emt 00:00:40]} 30. Ng3
{[%clk 00:31:28]} {[%emt 00:00:29]} fxg2 {[%clk 00:25:22]} {[%emt 00:01:01]} 31.
Kxg2 {[%clk 00:30:29]} {[%emt 00:01:28]} Qe7 {[%clk 00:23:31]} {[%emt
00:02:22]} 32. Qc2 {[%clk 00:26:08]} {[%emt 00:04:51]} h5 {[%clk 00:21:47]}
{[%emt 00:02:14]} 33. f3 {[%clk 00:16:03]} {[%emt 00:10:35]} Qg5 {[%clk
00:21:06]} {[%emt 00:01:10]} 34. Kf2 {[%clk 00:15:38]} {[%emt 00:00:55]} h4
{[%clk 00:15:59]} {[%emt 00:05:37]} 35. Ne4 {[%clk 00:15:31]} {[%emt 00:00:37]}
Qf4 {[%clk 00:15:25]} {[%emt 00:01:05]} 36. Kg1 {[%clk 00:14:34]} {[%emt
00:01:27]} Bc7 {[%clk 00:13:35]} {[%emt 00:02:20]} 37. Rf2 {[%clk 00:09:56]}
{[%emt 00:05:08]} Kg7 {[%clk 00:12:56]} {[%emt 00:01:09]} 38. Qd2 {[%clk
00:09:09]} {[%emt 00:01:17]} f5 {[%clk 00:10:08]} {[%emt 00:03:18]} 39. Nc5
{[%clk 00:08:54]} {[%emt 00:00:45]} Qxd2 {[%clk 00:09:12]} {[%emt 00:01:25]} 40.
Rxd2 {[%clk 00:09:23]} {[%emt 00:00:02]} Bf4 {[%clk 00:09:23]} {[%emt
00:00:19]} 41. Rc2 {[%clk 00:08:49]} {[%emt 00:01:04]} h3 {[%clk 00:01:54]}
{[%emt 00:08:00]} 42. Nd3 {[%clk 00:03:34]} {[%emt 00:05:44]} Bc7 {[%clk
00:01:57]} {[%emt 00:00:27]} 43. Rd2 {[%clk 00:28:46]} {[%emt 00:05:18]} g5
{[%clk 00:27:20]} {[%emt 00:05:07]} 44. Kf1 {[%clk 00:27:29]} {[%emt 00:01:47]}
Kh6 {[%clk 00:25:18]} {[%emt 00:02:32]} 45. Nf2 {[%clk 00:22:48]} {[%emt
00:05:11]} Bf4 {[%clk 00:22:40]} {[%emt 00:03:08]} 46. Rd3 {[%clk 00:19:29]}
{[%emt 00:03:48]} Bxh2 {[%clk 00:21:26]} {[%emt 00:01:45]} 47. Nxh3 {[%clk
00:19:15]} {[%emt 00:00:45]} Kh5 {[%clk 00:18:31]} {[%emt 00:03:24]} 48. Rd2
{[%clk 00:18:28]} {[%emt 00:01:17]} Bg3 {[%clk 00:18:33]} {[%emt 00:00:28]} 49.
Nf2 {[%clk 00:16:55]} {[%emt 00:02:01]} g4 {[%clk 00:14:45]} {[%emt 00:04:20]}
50. fxg4+ {[%clk 00:15:34]} {[%emt 00:01:51]} fxg4 {[%clk 00:15:13]} {[%emt
00:00:02]} 51. Nd3 {[%clk 00:12:32]} {[%emt 00:03:32]} Bd6 {[%clk 00:12:57]}
{[%emt 00:02:46]} 52. b3 {[%clk 00:10:09]} {[%emt 00:02:53]} g3 {[%clk
00:12:30]} {[%emt 00:00:57]} 53. Nb2 {[%clk 00:09:53]} {[%emt 00:00:46]} Kg4
{[%clk 00:12:19]} {[%emt 00:00:41]} 54. Kg2 {[%clk 00:08:28]} {[%emt 00:01:55]}
Bf4 {[%clk 00:12:26]} {[%emt 00:00:23]} 55. Rc2 {[%clk 00:08:41]} {[%emt
00:00:18]} Rh8 {[%clk 00:12:26]} {[%emt 00:00:29]} 56. Re2 {[%clk 00:07:33]}
{[%emt 00:01:38]} Rh2+ {[%clk 00:12:16]} {[%emt 00:00:41]} 57. Kf1 {[%clk
00:07:59]} {[%emt 00:00:03]} Rxe2 {[%clk 00:12:03]} {[%emt 00:00:43]} 58. Kxe2
{[%clk 00:08:28]} {[%emt 00:00:02]} g2 {[%clk 00:11:23]} {[%emt 00:01:10]} 59.
Kf2 {[%clk 00:08:08]} {[%emt 00:00:49]} Kh3 {[%clk 00:11:45]} {[%emt 00:00:08]}
60. Nd3 {[%clk 00:07:37]} {[%emt 00:01:01]} Bh2 {[%clk 00:11:24]} {[%emt
00:00:52]} 0-1

[Event "Masterklassen 2025"]
[Site "Uppsala, Sweden"]
[Date "2025.07.03"]
[Round "6.13"]
[White "Ask, Josef"]
[Black "Wakeham, Daniel"]
[Result "1-0"]
[TimeControl "90 min for 40 move + 30 min with an increment of 30 sec starting move 1"]
[WhiteTitle "FM"]
[WhiteFideId "1704583"]
[BlackFideId "1705482"]
[WhiteElo "2121"]
[BlackElo "2045"]

1. g3 {[%clk 01:30:58]} {[%emt 00:00:02]} d5 {[%clk 01:29:34]} {[%emt
00:01:26]} 2. Bg2 {[%clk 01:31:14]} {[%emt 00:00:15]} Nf6 {[%clk 01:29:30]}
{[%emt 00:00:35]} 3. f4 {[%clk 01:29:38]} {[%emt 00:02:06]} Bf5 {[%clk
01:20:03]} {[%emt 00:09:56]} 4. d3 {[%clk 01:26:42]} {[%emt 00:03:26]} e6
{[%clk 01:16:11]} {[%emt 00:04:22]} 5. Nf3 {[%clk 01:26:34]} {[%emt 00:00:39]}
Bc5 {[%clk 01:15:39]} {[%emt 00:01:01]} 6. h3 {[%clk 01:19:54]} {[%emt
00:07:09]} h5 {[%clk 01:15:08]} {[%emt 00:01:02]} 7. Ne5 {[%clk 01:16:37]}
{[%emt 00:03:47]} Nbd7 {[%clk 01:12:26]} {[%emt 00:03:12]} 8. c4 {[%clk
01:13:55]} {[%emt 00:03:13]} c6 {[%clk 01:00:38]} {[%emt 00:12:17]} 9. d4
{[%clk 01:02:07]} {[%emt 00:12:18]} Bb4+ {[%clk 01:00:01]} {[%emt 00:01:07]} 10.
Nc3 {[%clk 01:01:32]} {[%emt 00:01:05]} Ne4 {[%clk 00:58:31]} {[%emt 00:01:59]}
11. Bxe4 {[%clk 00:56:50]} {[%emt 00:05:12]} Bxe4 {[%clk 00:58:51]} {[%emt
00:00:10]} 12. O-O {[%clk 00:57:08]} {[%emt 00:00:12]} Bxc3 {[%clk 00:48:36]}
{[%emt 00:10:46]} 13. bxc3 {[%clk 00:57:32]} {[%emt 00:00:06]} Nxe5 {[%clk
00:49:00]} {[%emt 00:00:06]} 14. fxe5 {[%clk 00:57:48]} {[%emt 00:00:15]} dxc4
{[%clk 00:49:17]} {[%emt 00:00:12]} 15. Rf4 {[%clk 00:55:51]} {[%emt 00:02:27]}
Qd5 {[%clk 00:48:59]} {[%emt 00:00:48]} 16. Qf1 {[%clk 00:55:33]} {[%emt
00:00:48]} Bg6 {[%clk 00:41:51]} {[%emt 00:07:38]} 17. Ba3 {[%clk 00:55:19]}
{[%emt 00:00:44]} b6 {[%clk 00:39:09]} {[%emt 00:03:12]} 18. e4 {[%clk
00:53:28]} {[%emt 00:02:21]} Qb5 {[%clk 00:37:10]} {[%emt 00:02:30]} 19. Bd6
{[%clk 00:49:43]} {[%emt 00:04:15]} O-O-O {[%clk 00:18:45]} {[%emt 00:18:54]}
20. Rb1 {[%clk 00:39:38]} {[%emt 00:10:35]} Qa6 {[%clk 00:18:20]} {[%emt
00:00:54]} 21. a4 {[%clk 00:32:40]} {[%emt 00:07:29]} Rd7 {[%clk 00:11:21]}
{[%emt 00:07:29]} 22. Rb4 {[%clk 00:31:11]} {[%emt 00:01:58]} b5 {[%clk
00:10:16]} {[%emt 00:01:35]} 23. axb5 {[%clk 00:31:28]} {[%emt 00:00:14]} cxb5
{[%clk 00:10:45]} {[%emt 00:00:02]} 24. Qxc4+ {[%clk 00:31:16]} {[%emt
00:00:41]} Kb7 {[%clk 00:10:51]} {[%emt 00:00:24]} 25. Rxb5+ {[%clk 00:31:17]}
{[%emt 00:00:28]} 1-0

[Event "Masterklassen 2025"]
[Site "Uppsala, Sweden"]
[Date "2025.07.03"]
[Round "6.14"]
[White "Malm, Simon"]
[Black "Sundin, Emanuel"]
[Result "0-1"]
[TimeControl "90 min for 40 move + 30 min with an increment of 30 sec starting move 1"]
[WhiteFideId "1759825"]
[BlackFideId "1719173"]
[WhiteElo "2007"]
[BlackElo "2117"]

1. d4 {[%clk 01:30:57]} {[%emt 00:00:03]} Nf6 {[%clk 01:30:51]} {[%emt
00:00:10]} 2. c4 {[%clk 01:31:15]} {[%emt 00:00:12]} e6 {[%clk 01:31:10]}
{[%emt 00:00:11]} 3. Nf3 {[%clk 01:30:11]} {[%emt 00:01:33]} Bb4+ {[%clk
01:31:24]} {[%emt 00:00:16]} 4. Bd2 {[%clk 01:29:55]} {[%emt 00:00:45]} a5
{[%clk 01:31:16]} {[%emt 00:00:40]} 5. a3 {[%clk 01:27:57]} {[%emt 00:02:28]}
Bxd2+ {[%clk 01:30:10]} {[%emt 00:01:36]} 6. Qxd2 {[%clk 01:25:20]} {[%emt
00:03:06]} b6 {[%clk 01:27:05]} {[%emt 00:03:36]} 7. Nc3 {[%clk 01:24:53]}
{[%emt 00:00:56]} Bb7 {[%clk 01:27:04]} {[%emt 00:00:31]} 8. Qc2 {[%clk
01:22:52]} {[%emt 00:02:31]} d5 {[%clk 01:25:59]} {[%emt 00:01:35]} 9. cxd5
{[%clk 01:19:18]} {[%emt 00:04:04]} Nxd5 {[%clk 01:25:53]} {[%emt 00:00:37]} 10.
e4 {[%clk 01:14:19]} {[%emt 00:05:29]} Nxc3 {[%clk 01:25:55]} {[%emt 00:00:28]}
11. bxc3 {[%clk 01:14:41]} {[%emt 00:00:08]} O-O {[%clk 01:24:19]} {[%emt
00:02:07]} 12. Bd3 {[%clk 01:11:59]} {[%emt 00:03:11]} Nd7 {[%clk 01:22:15]}
{[%emt 00:02:34]} 13. h4 {[%clk 01:04:11]} {[%emt 00:08:18]} e5 {[%clk
00:53:44]} {[%emt 00:29:00]} 14. Nxe5 {[%clk 00:57:05]} {[%emt 00:07:36]} Nxe5
{[%clk 00:52:16]} {[%emt 00:01:59]} 15. dxe5 {[%clk 00:57:33]} {[%emt
00:00:01]} Qe7 {[%clk 00:52:07]} {[%emt 00:00:40]} 16. f4 {[%clk 00:57:17]}
{[%emt 00:00:46]} Qc5 {[%clk 00:51:47]} {[%emt 00:00:50]} 17. Ke2 {[%clk
00:52:36]} {[%emt 00:05:10]} Rfd8 {[%clk 00:43:54]} {[%emt 00:08:24]} 18. Rhd1
{[%clk 00:50:23]} {[%emt 00:02:42]} Rd7 {[%clk 00:39:43]} {[%emt 00:04:41]} 19.
Kf3 {[%clk 00:50:03]} {[%emt 00:00:50]} Rad8 {[%clk 00:33:51]} {[%emt
00:06:22]} 20. a4 {[%clk 00:48:47]} {[%emt 00:01:46]} Bc6 {[%clk 00:18:22]}
{[%emt 00:16:00]} 21. Be2 {[%clk 00:39:14]} {[%emt 00:10:03]} h5 {[%clk
00:14:02]} {[%emt 00:04:50]} 22. Rxd7 {[%clk 00:15:56]} {[%emt 00:23:48]} Bxd7
{[%clk 00:14:14]} {[%emt 00:00:18]} 23. f5 {[%clk 00:08:43]} {[%emt 00:07:43]}
Bc6 {[%clk 00:10:14]} {[%emt 00:04:30]} 24. Rd1 {[%clk 00:06:39]} {[%emt
00:02:32]} Rxd1 {[%clk 00:10:26]} {[%emt 00:00:19]} 25. Qxd1 {[%clk 00:06:09]}
{[%emt 00:01:02]} Qxe5 {[%clk 00:10:30]} {[%emt 00:00:25]} 26. Qd8+ {[%clk
00:04:47]} {[%emt 00:01:52]} Kh7 {[%clk 00:10:24]} {[%emt 00:00:36]} 27. Kf2
{[%clk 00:03:19]} {[%emt 00:01:58]} Bxe4 {[%clk 00:05:52]} {[%emt 00:05:02]} 28.
Bxh5 {[%clk 00:03:47]} {[%emt 00:00:02]} Qxf5+ {[%clk 00:04:51]} {[%emt
00:01:31]} 29. Bf3 {[%clk 00:04:16]} {[%emt 00:00:01]} Bxf3 {[%clk 00:03:49]}
{[%emt 00:01:32]} 30. gxf3 {[%clk 00:04:44]} {[%emt 00:00:02]} Qc5+ {[%clk
00:03:51]} {[%emt 00:00:28]} 31. Kg2 {[%clk 00:03:50]} {[%emt 00:01:24]} Qxc3
{[%clk 00:03:56]} {[%emt 00:00:26]} 32. Qd5 {[%clk 00:03:23]} {[%emt 00:00:55]}
Qb2+ {[%clk 00:03:08]} {[%emt 00:01:19]} 33. Kh3 {[%clk 00:03:05]} {[%emt
00:00:47]} Qf6 {[%clk 00:03:18]} {[%emt 00:00:20]} 34. Qh5+ {[%clk 00:02:05]}
{[%emt 00:01:31]} Kg8 {[%clk 00:03:47]} {[%emt 00:00:01]} 35. Kh2 {[%clk
00:01:22]} {[%emt 00:01:13]} Qd6+ {[%clk 00:03:42]} {[%emt 00:00:35]} 36. Kh3
{[%clk 00:01:09]} {[%emt 00:00:42]} Qe6+ {[%clk 00:03:50]} {[%emt 00:00:23]} 37.
Kh2 {[%clk 00:01:30]} {[%emt 00:00:09]} Qd6+ {[%clk 00:04:09]} {[%emt
00:00:11]} 38. Kh3 {[%clk 00:01:45]} {[%emt 00:00:15]} Qd7+ {[%clk 00:04:22]}
{[%emt 00:00:17]} 39. Kg3 {[%clk 00:01:31]} {[%emt 00:00:43]} Qxa4 {[%clk
00:04:18]} {[%emt 00:00:35]} 40. Qd5 {[%clk 00:00:51]} {[%emt 00:01:10]} Qc2
{[%clk 00:03:50]} {[%emt 00:00:58]} 41. h5 {[%clk 00:28:35]} {[%emt 00:02:45]}
Qc5 {[%clk 00:26:47]} {[%emt 00:07:33]} 42. Qd8+ {[%clk 00:26:34]} {[%emt
00:02:32]} Kh7 {[%clk 00:26:15]} {[%emt 00:01:01]} 43. Qd3+ {[%clk 00:25:19]}
{[%emt 00:01:45]} Kh6 {[%clk 00:26:03]} {[%emt 00:00:42]} 44. f4 {[%clk
00:24:47]} {[%emt 00:01:02]} Qxh5 {[%clk 00:18:05]} {[%emt 00:08:29]} 45. Qd8
{[%clk 00:24:20]} {[%emt 00:00:56]} Qg6+ {[%clk 00:17:48]} {[%emt 00:00:48]} 46.
Kf3 {[%clk 00:24:18]} {[%emt 00:00:31]} Qc6+ {[%clk 00:17:40]} {[%emt
00:00:38]} 47. Kg3 {[%clk 00:23:04]} {[%emt 00:01:44]} Kh7 {[%clk 00:17:36]}
{[%emt 00:00:34]} 48. Qh4+ {[%clk 00:21:34]} {[%emt 00:02:00]} Qh6 {[%clk
00:17:57]} {[%emt 00:00:09]} 49. Qe7 {[%clk 00:21:56]} {[%emt 00:00:09]} Qg6+
{[%clk 00:17:53]} {[%emt 00:00:34]} 50. Kf3 {[%clk 00:22:12]} {[%emt 00:00:14]}
Qc6+ {[%clk 00:17:27]} {[%emt 00:00:56]} 51. Kg3 {[%clk 00:22:20]} {[%emt
00:00:21]} Qd6 {[%clk 00:15:41]} {[%emt 00:02:16]} 52. Qe8 {[%clk 00:21:12]}
{[%emt 00:01:39]} c5 {[%clk 00:14:01]} {[%emt 00:02:10]} 53. Kf3 {[%clk
00:21:06]} {[%emt 00:00:35]} Qd5+ {[%clk 00:14:09]} {[%emt 00:00:22]} 54. Kg4
{[%clk 00:20:50]} {[%emt 00:00:46]} 0-1

[Event "Masterklassen 2025"]
[Site "Uppsala, Sweden"]
[Date "2025.07.03"]
[Round "6.15"]
[White "Lind, Jan-Olov"]
[Black "Schriever-Abeln, Marius"]
[Result "1/2-1/2"]
[TimeControl "90 min for 40 move + 30 min with an increment of 30 sec starting move 1"]
[WhiteFideId "1701193"]
[BlackFideId "1752650"]
[WhiteElo "2057"]
[BlackElo "2052"]

1. e4 {[%clk 01:30:55]} {[%emt 00:00:03]} c5 {[%clk 01:30:54]} {[%emt
00:00:07]} 2. Nf3 {[%clk 01:31:12]} {[%emt 00:00:12]} d6 {[%clk 01:31:20]}
{[%emt 00:00:05]} 3. d4 {[%clk 01:31:31]} {[%emt 00:00:11]} cxd4 {[%clk
01:31:44]} {[%emt 00:00:06]} 4. Nxd4 {[%clk 01:31:57]} {[%emt 00:00:05]} Nf6
{[%clk 01:32:07]} {[%emt 00:00:07]} 5. Nc3 {[%clk 01:32:22]} {[%emt 00:00:04]}
a6 {[%clk 01:32:34]} {[%emt 00:00:04]} 6. Bc4 {[%clk 01:32:36]} {[%emt
00:00:15]} e6 {[%clk 01:32:57]} {[%emt 00:00:08]} 7. Be3 {[%clk 01:32:58]}
{[%emt 00:00:08]} b5 {[%clk 01:32:11]} {[%emt 00:01:16]} 8. Bb3 {[%clk
01:33:18]} {[%emt 00:00:10]} Be7 {[%clk 01:31:32]} {[%emt 00:01:08]} 9. Qe2
{[%clk 01:33:33]} {[%emt 00:00:15]} O-O {[%clk 01:28:51]} {[%emt 00:03:12]} 10.
f3 {[%clk 01:33:32]} {[%emt 00:00:31]} Qc7 {[%clk 01:25:15]} {[%emt 00:04:07]}
11. O-O-O {[%clk 01:33:37]} {[%emt 00:00:23]} Bd7 {[%clk 01:22:44]} {[%emt
00:03:01]} 12. g4 {[%clk 01:31:28]} {[%emt 00:02:38]} Nc6 {[%clk 01:15:48]}
{[%emt 00:07:28]} 13. g5 {[%clk 01:29:26]} {[%emt 00:02:32]} Nh5 {[%clk
01:11:30]} {[%emt 00:04:48]} 14. Qd2 {[%clk 01:05:31]} {[%emt 00:24:24]} Nxd4
{[%clk 00:51:14]} {[%emt 00:20:46]} 15. Qxd4 {[%clk 01:00:34]} {[%emt
00:05:27]} a5 {[%clk 00:43:16]} {[%emt 00:08:29]} 16. e5 {[%clk 00:56:05]}
{[%emt 00:04:58]} Ra6 {[%clk 00:29:03]} {[%emt 00:14:44]} 17. a4 {[%clk
00:53:15]} {[%emt 00:03:19]} bxa4 {[%clk 00:14:36]} {[%emt 00:14:57]} 18. Bxa4
{[%clk 00:51:56]} {[%emt 00:01:49]} Bxa4 {[%clk 00:14:13]} {[%emt 00:00:53]} 19.
Qxa4 {[%clk 00:51:20]} {[%emt 00:01:06]} Rb8 {[%clk 00:13:17]} {[%emt
00:01:27]} 20. exd6 {[%clk 00:47:55]} {[%emt 00:03:55]} Rxd6 {[%clk 00:10:24]}
{[%emt 00:03:23]} 21. Ne4 {[%clk 00:37:44]} {[%emt 00:10:39]} Rc6 {[%clk
00:09:12]} {[%emt 00:01:43]} 22. c3 {[%clk 00:33:58]} {[%emt 00:04:16]} Rb4
{[%clk 00:06:42]} {[%emt 00:03:01]} 23. Qc2 {[%clk 00:33:11]} {[%emt 00:01:16]}
a4 {[%clk 00:05:34]} {[%emt 00:01:39]} 24. Kb1 {[%clk 00:30:45]} {[%emt
00:02:55]} Rb3 {[%clk 00:04:31]} {[%emt 00:01:34]} 25. Rd3 {[%clk 00:28:15]}
{[%emt 00:02:59]} Nf4 {[%clk 00:01:41]} {[%emt 00:03:20]} 26. Bxf4 {[%clk
00:18:14]} {[%emt 00:10:31]} Qxf4 {[%clk 00:01:40]} {[%emt 00:00:32]} 27. Rhd1
{[%clk 00:16:16]} {[%emt 00:02:27]} Qb8 {[%clk 00:01:10]} {[%emt 00:01:00]} 28.
c4 {[%clk 00:09:33]} {[%emt 00:07:13]} Rcb6 {[%clk 00:00:46]} {[%emt 00:00:55]}
29. Rxb3 {[%clk 00:09:22]} {[%emt 00:00:41]} axb3 {[%clk 00:00:35]} {[%emt
00:00:42]} 30. Qc3 {[%clk 00:07:24]} {[%emt 00:02:26]} Qa8 {[%clk 00:00:42]}
{[%emt 00:00:24]} 31. Rd7 {[%clk 00:03:56]} {[%emt 00:03:57]} Bf8 {[%clk
00:00:35]} {[%emt 00:00:38]} 32. Qd4 {[%clk 00:02:51]} {[%emt 00:01:33]} Qa2+
{[%clk 00:00:36]} {[%emt 00:00:31]} 33. Kc1 {[%clk 00:03:14]} {[%emt 00:00:07]}
Qa1+ {[%clk 00:00:53]} {[%emt 00:00:13]} 34. Kd2 {[%clk 00:03:36]} {[%emt
00:00:07]} Bb4+ {[%clk 00:00:51]} {[%emt 00:00:32]} 35. Ke3 {[%clk 00:01:12]}
{[%emt 00:02:53]} Qg1+ {[%clk 00:00:53]} {[%emt 00:00:29]} 36. Kd3 {[%clk
00:00:54]} {[%emt 00:00:48]} Qf1+ {[%clk 00:00:56]} {[%emt 00:00:28]} 37. Ke3
{[%clk 00:01:10]} {[%emt 00:00:13]} Qg1+ {[%clk 00:00:58]} {[%emt 00:00:28]} 38.
Kd3 {[%clk 00:01:30]} {[%emt 00:00:09]} Qb1+ {[%clk 00:00:56]} {[%emt
00:00:34]} 39. Ke3 {[%clk 00:01:46]} {[%emt 00:00:13]} Qe1+ {[%clk 00:00:48]}
{[%emt 00:00:38]} 40. Kd3 {[%clk 00:01:50]} {[%emt 00:00:25]} Qf1+ {[%clk
00:00:37]} {[%emt 00:00:42]} 41. Ke3 {[%clk 00:01:56]} {[%emt 00:00:23]} Qg1+
{[%clk 00:13:08]} {[%emt 00:18:00]} 1/2-1/2